fUSD/lending_fUSD_20260308
["ID","MTS","AMOUNT","RATE_DAILY","PERIOD"]
[408000089,1773003039838,-200.0,0.00019808,2]
[408000090,1773003039847,-200.0,0.0001984,2]
[408000091,1773003039856,-1324.963,0.00019844,2]
[408000092,1773003039866,-205.0,0.00019857,2]
[408000093,1773003039875,-166.66,0.00019863,2]
[408000094,1773003039885,-2922.0,0.0001987,2]
[408000095,1773003039894,-2500.0,0.00019899,2]
[408000096,1773003039903,-500.0,0.00019899,2]
[408000097,1773003039912,-500.0,0.00019899,2]
[408000098,1773003039922,-2488.84199606,0.00019899,2]
[408000099,1773003039931,-2488.84199606,0.00019899,2]
[408000100,1773003039940,-2488.84199606,0.00019899,2]
[408000102,1773003039949,-2488.84199606,0.00019899,2]
[408000103,1773003039958,-2488.84199606,0.00019899,2]
[408000104,1773003039967,-2488.84199606,0.000199,2]
[408000105,1773003039980,-2488.84199606,0.000199,2]
[408000106,1773003039990,-2488.84199606,0.000199,2]
[408000107,1773003039999,-2000.0,0.000199,2]
[408000108,1773003040008,-2000.0,0.000199,2]
[408000109,1773003040017,-2000.0,0.000199,2]
[408000110,1773003040027,-150.0,0.000199,2]
[408000111,1773003040036,-150.0,0.000199,2]
[408000112,1773003040046,-150.0,0.000199,2]
[408000113,1773003040055,-2000.0,0.000199,2]
[408000114,1773003040064,-2820.95619039,0.000199,2]
[408000115,1773003040073,-6271.77889695,0.000199,3]
[408000116,1773003040083,-150.0,0.000199,2]
[408000117,1773003040093,-200.72181509,0.000199,2]
[408000118,1773003040102,-500.0,0.000199,2]
[408000119,1773003040111,-500.0,0.000199,2]
[408000120,1773003040121,-331.18055175,0.000199,2]
[408000121,1773003040130,-150.0,0.000199,2]
[408000122,1773003040140,-2255.11393819,0.000199,2]
[408000123,1773003040149,-1927.56441577,0.000199,2]
[408000124,1773003040158,-5800.0,0.000199,2]
[408000125,1773003040167,-2929.0,0.00019949,6]
[408000126,1773003040176,-578.0,0.00019964,2]
[408000127,1773003040186,-205.0,0.00019974,2]
[408000128,1773003040195,-526.97,0.00019977,2]
[408000129,1773003040207,-619.0,0.0001998,2]
[408000130,1773003040216,-1042.0,0.0001998,2]
[408000131,1773003040226,-3504.0,0.0001998,2]
[408000132,1773003040235,-1342.0,0.0001998,2]
[408000133,1773003040244,-1279.0,0.0001998,2]
[408000134,1773003040257,-150.0,0.0001998,2]
[408000135,1773003040266,-5992.0,0.0001998,2]
[408000136,1773003040275,-2460.0,0.0001998,2]
[408000137,1773003040285,-350.0,0.00019986,2]
[408000138,1773003040296,-500.0,0.00019998,2]
[408000139,1773003040306,-500.0,0.00019998,2]
[408000140,1773003040316,-500.0,0.00019998,2]
[408000141,1773003040327,-500.0,0.00019998,2]
[408000142,1773003040337,-300.0,0.00019999,2]
[408000143,1773003040347,-300.0,0.00019999,2]
[408000144,1773003040356,-60268.06658874,0.00019999,2]
[408000145,1773003040372,-336.030554,0.00019999,2]
[408000146,1773003040384,-4666.28376676,0.00019999,2]
[408000147,1773003040394,-41727.7593326,0.00019999,2]
[408000148,1773003040403,-8482.2892936,0.00019999,2]
[408000149,1773003040412,-1549.2572665,0.00019999,2]
[408000150,1773003040421,-10362.30910913,0.00019999,2]
[408000151,1773003040432,-4621.47047906,0.00019999,2]
[408000170,1773003046145,-886.13945509,0.000199,2]
[408000174,1773003761407,7045.86367407,0.0002,120]
[408000195,1773004231535,-444.0,0.00012829,2]
[408000196,1773004231578,-665.0,0.00012829,2]
[408000197,1773004231587,-20.86632813,0.00013505,2]
[408000198,1773004231599,-971.72153587,0.00013505,2]
[408000199,1773004231614,-116.412136,0.00013505,2]
[408000200,1773004231624,-1109.0,0.00013505,2]
[408000201,1773004231634,-151.6648833,0.00013688,2]
[408000202,1773004231644,-683.25571036,0.00013787,2]
[408000203,1773004231655,-516.74428964,0.00013787,2]
[408000204,1773004231664,-300.0,0.00013788,2]
[408000205,1773004231674,-300.0,0.00013788,2]
[408000206,1773004231683,-11833.8382576,0.00013789,2]
[408000207,1773004231692,-64996.89086837,0.0001379,2]
[408000208,1773004231701,-151.6648833,0.000139,2]
[408000209,1773004231711,-179.91,0.00014,2]
[408000210,1773004231721,-297.57310934,0.00014112,2]
[408000211,1773004231730,-74713.0,0.000142,2]
[408000212,1773004231740,-1109.0,0.00014215,2]
[408000213,1773004231751,-1109.0,0.00014215,2]
[408000214,1773004231760,-179.91,0.00014339,2]
[408000215,1773004231769,-4912.86434099,0.00014489,2]
[408000216,1773004231782,-669.99849335,0.00014489,2]
[408000217,1773004231791,-417.192265,0.00014589,7]
[408000218,1773004231800,-5533.0,0.000146,3]
[408000219,1773004231810,-179.91,0.00014678,2]
[408000220,1773004231820,-1251.43,0.00014853,2]
[408000221,1773004231829,-1109.0,0.00014963,2]
[408000222,1773004231838,-1109.0,0.00014963,2]
[408000223,1773004231847,-250.0,0.00015,2]
[408000224,1773004231857,-5533.0,0.00015,5]
[408000225,1773004231866,-179.91,0.00015017,2]
[408000226,1773004231875,-362.85868687,0.0001509,2]
[408000230,1773004238936,-615.21547425,0.0001509,2]
[408000231,1773004238953,-4604.78867313,0.0001509,2]
[408000232,1773004238962,-1680.0,0.00015166,2]
[408000233,1773004238972,-179.91,0.00015357,2]
[408000234,1773004238983,-340.11050137,0.00015428,2]
[408000235,1773004238999,-544.31760986,0.00015428,2]
[408000236,1773004239062,-1697.851101,0.00015428,2]
[408000237,1773004239070,-233.60637254,0.00015471,2]
[408000238,1773004239082,-421.43362746,0.00015471,2]
[408000239,1773004239091,-248.96637254,0.00015536,2]
[408000240,1773004239102,-258.6,0.00015536,2]
[408000241,1773004239112,-383.736,0.00015536,2]
[408000242,1773004239124,-306.94227919,0.00015536,2]
[408000243,1773004239139,-5582.86283425,0.00015691,2]
[408000244,1773004239149,-108.33149749,0.00015696,2]
[408000245,1773004239161,-71.57850251,0.00015696,2]
[408000246,1773004239170,-1109.0,0.00015751,2]
[408000247,1773004239179,-551.27822751,0.00015751,2]
[408000248,1773004239190,-557.72177249,0.00015751,2]
[408000249,1773004239199,-348.45,0.00015929,2]
[408000250,1773004239208,-179.91,0.00016035,2]
[408000251,1773004239217,-255.07254653,0.00016093,2]
[408000252,1773004239228,-1684.48189286,0.00016093,2]
[408000253,1773004239239,-60.44556061,0.00016093,2]
[408000254,1773004239248,-2281.43,0.00016125,2]
[408000255,1773004239257,-2323.31563054,0.00016228,2]
[408000256,1773004239268,-2847.91436946,0.00016228,2]
[408000257,1773004239278,-681.760866,0.00016293,2]
[408000258,1773004239291,-255.81419352,0.00016293,2]
[408000259,1773004239316,-728.87483966,0.00016293,2]
[408000260,1773004239358,-3916.41293507,0.00016293,2]
[408000261,1773004239367,-179.91,0.00016374,2]
[408000262,1773004239377,-1109.0,0.00016539,2]
[408000263,1773004239387,-1109.0,0.00016539,2]
[408000264,1773004239397,-466.07706493,0.0001656,2]
[408000277,1773004239727,-533.92293507,0.0001656,2]
[408000278,1773004239738,-158.92591507,0.00016682,2]
[408000279,1773004239750,-430.99278857,0.00016682,2]
[408000280,1773004239761,-1761.08129636,0.00016682,2]
[408000281,1773004239771,-179.91,0.00016713,2]
[408000282,1773004239780,-3590.3186426,0.00016894,2]
[408000283,1773004239940,-1992.54419165,0.00016894,2]
[408000284,1773004239949,-250.0,0.00016952,2]
[408000285,1773004239958,-500.0,0.00016952,2]
[408000286,1773004239968,-503.0,0.00017,2]
[408000287,1773004239978,-300.0,0.00017,2]
[408000288,1773004239986,-151.0,0.00017042,2]
[408000289,1773004239995,-2576.34,0.00017045,2]
[408000290,1773004240005,-179.91,0.00017052,2]
[408000291,1773004240014,-166.66,0.00017223,2]
[408000292,1773004240024,-1109.0,0.00017365,2]
[408000293,1773004240033,-1109.0,0.00017365,2]
[408000294,1773004240042,-179.91,0.00017391,2]
[408000295,1773004240051,-5582.86283425,0.00017495,2]
[408000296,1773004240061,-9999.99,0.00017728,2]
[408000297,1773004240070,-260.71,0.00017728,2]
[408000298,1773004240079,-9999.99,0.00017728,2]
[408000299,1773004240088,-299.99,0.00017728,4]
[408000300,1773004240097,-415.66,0.00017728,2]
[408000301,1773004240107,-7288.86,0.00017728,2]
[408000302,1773004240116,-3016.29,0.00017728,2]
[408000303,1773004240125,-150.99,0.00017728,2]
[408000304,1773004240134,-9301.2,0.00017728,2]
[408000305,1773004240143,-9999.99,0.00017728,2]
[408000306,1773004240152,-179.91,0.0001773,2]
[408000307,1773004240161,-166.66,0.00017792,2]
[408000308,1773004240170,-3700.0,0.000178,6]
[408000309,1773004240180,-7500.0,0.000179,6]
[408000310,1773004240189,-179.91,0.0001807,2]
[408000311,1773004240200,-700.0,0.00018082,7]
[408000312,1773004240219,-2300.0,0.00018082,7]
[408000313,1773004240229,-1800.0,0.00018082,7]
[408000315,1773004240238,-5582.86283425,0.00018096,2]
[408000317,1773004240247,-2000.0,0.00018105,2]
[408000318,1773004240256,-1109.0,0.00018234,2]
[408000319,1773004240266,-1109.0,0.00018234,2]
[408000320,1773004240275,-499.03336123,0.00018279,2]
[408000321,1773004240284,-503.0,0.00018286,3]
[408000322,1773004240293,-4929.29232872,0.00018332,2]
[408000323,1773004240302,-539.84140575,0.00018333,2]
[408000324,1773004240311,-9279.44470701,0.00018333,2]
[408000325,1773004240321,-3292.0,0.0001835,2]
[408000326,1773004240330,-166.66,0.0001836,2]
[408000327,1773004240339,-847.0,0.000184,2]
[408000328,1773004240349,-179.91,0.00018409,2]
[408000329,1773004240358,-154.6401334,0.0001843,2]
[408000330,1773004240367,-151.0,0.0001843,2]
[408000331,1773004240377,-500.0,0.00018431,2]
[408000332,1773004240386,-496.22035025,0.00018431,2]
[408000333,1773004240396,-500.0,0.00018431,2]
[408000334,1773004240405,-191.81456741,0.00018431,2]
[408000335,1773004240414,-500.0,0.00018431,2]
[408000337,1773004240423,-491.87148293,0.00018431,2]
[408000339,1773004240432,-500.0,0.00018431,2]
[408000341,1773004240441,-500.0,0.00018431,2]
[408000343,1773004240451,-500.0,0.00018431,2]
[408000345,1773004240459,-500.0,0.00018431,2]
[408000347,1773004240469,-500.0,0.00018431,2]
[408000349,1773004240478,-500.0,0.00018431,2]
[408000350,1773004240487,-500.0,0.00018431,2]
[408000351,1773004240497,-500.0,0.00018431,2]
[408000352,1773004240506,-500.0,0.00018431,2]
[408000353,1773004240515,-500.0,0.00018431,2]
[408000354,1773004240524,-500.0,0.00018431,2]
[408000355,1773004240533,-500.0,0.00018431,2]
[408000356,1773004240542,-500.0,0.00018431,2]
[408000357,1773004240551,-500.0,0.00018431,2]
[408000358,1773004240561,-500.0,0.00018431,2]
[408000359,1773004240570,-500.0,0.00018431,2]
[408000360,1773004240579,-500.0,0.00018431,2]
[408000361,1773004240588,-500.0,0.00018431,2]
[408000362,1773004240599,-500.0,0.00018431,2]
[408000363,1773004240616,-500.0,0.00018431,2]
[408000364,1773004240626,-500.0,0.00018431,2]
[408000365,1773004240635,-387.12002448,0.00018431,2]
[408000366,1773004240646,-500.0,0.00018431,2]
[408000367,1773004240655,-500.0,0.00018431,2]
[408000368,1773004240664,-500.0,0.00018431,2]
[408000369,1773004240674,-500.0,0.00018431,2]
[408000370,1773004240683,-500.0,0.00018431,2]
[408000371,1773004240692,-500.0,0.00018431,2]
[408000372,1773004240956,-500.0,0.00018431,2]
[408000373,1773004240969,-500.0,0.00018431,2]
[408000374,1773004240979,-500.0,0.00018431,2]
[408000375,1773004240988,-500.0,0.00018431,2]
[408000376,1773004240997,-500.0,0.00018431,2]
[408000377,1773004241006,-500.0,0.00018431,2]
[408000378,1773004241015,-500.0,0.00018431,2]
[408000379,1773004241024,-500.0,0.00018431,2]
[408000380,1773004241033,-500.0,0.00018431,2]
[408000381,1773004241042,-600.0,0.00018431,2]
[408000382,1773004241052,-500.0,0.00018431,2]
[408000383,1773004241061,-500.0,0.00018431,2]
[408000384,1773004241070,-500.0,0.00018431,2]
[408000385,1773004241079,-500.0,0.00018431,2]
[408000386,1773004241087,-500.0,0.00018431,2]
[408000387,1773004241097,-500.0,0.00018433,2]
[408000388,1773004241106,-500.0,0.00018433,2]
[408000389,1773004241115,-500.0,0.00018433,2]
[408000390,1773004241124,-500.0,0.00018433,2]
[408000391,1773004241133,-500.0,0.00018433,2]
[408000392,1773004241143,-500.0,0.00018433,2]
[408000393,1773004241152,-500.0,0.00018433,2]
[408000394,1773004241161,-500.0,0.00018433,2]
[408000395,1773004241171,-500.0,0.00018433,2]
[408000396,1773004241180,-500.0,0.00018433,2]
[408000397,1773004241189,-500.0,0.00018433,2]
[408000398,1773004241199,-500.0,0.00018433,2]
[408000399,1773004241209,-500.0,0.00018433,2]
[408000400,1773004241218,-500.0,0.00018433,2]
[408000401,1773004241227,-500.0,0.00018433,2]
[408000402,1773004241236,-500.0,0.00018433,2]
[408000403,1773004241245,-500.0,0.00018433,2]
[408000404,1773004241255,-500.0,0.00018433,2]
[408000405,1773004241264,-500.0,0.00018433,2]
[408000406,1773004241273,-500.0,0.00018433,2]
[408000407,1773004241283,-500.0,0.00018433,2]
[408000408,1773004241292,-500.0,0.00018433,2]
[408000409,1773004241302,-500.0,0.00018433,2]
[408000410,1773004241311,-920832.2607,0.00018433,2]
[408000411,1773004241320,-2988.01,0.00018433,2]
[408000412,1773004241329,-2988.01,0.00018433,2]
[408000413,1773004241339,-2988.01,0.00018433,2]
[408000414,1773004241348,-3416.63,0.00018433,2]
[408000415,1773004241357,-487.0,0.00018433,2]
[408000416,1773004241366,-487.0,0.00018433,2]
[408000417,1773004241375,-487.0,0.00018433,2]
[408000418,1773004241384,-487.0,0.00018433,2]
[408000419,1773004241393,-487.0,0.00018433,2]
[408000420,1773004241403,-487.0,0.00018433,2]
[408000421,1773004241413,-487.0,0.00018433,2]
[408000422,1773004241423,-586.9,0.00018433,2]
[408000423,1773004241432,-9279.44470698,0.00018507,2]
[408000424,1773004241441,-4929.29232867,0.00018556,2]
[408000425,1773004241450,-539.84140575,0.00018594,2]
[408000426,1773004241460,-9279.44470698,0.00018681,2]
[408000427,1773004241469,-5582.86283425,0.00018698,2]
[408000428,1773004241478,-153.26656442,0.00018712,2]
[408000429,1773004241488,-160.0,0.0001872,2]
[408000430,1773004241497,-179.91,0.00018748,2]
[408000431,1773004241507,-4929.29232867,0.0001878,2]
[408000432,1773004241516,-3423.7,0.00018788,2]
[408000433,1773004241526,-1131.9,0.00018853,2]
[408000434,1773004241535,-539.84140575,0.00018855,2]
[408000435,1773004241546,-9279.44470698,0.00018855,2]
[408000436,1773004241555,-2665.33902125,0.00018867,2]
[408000437,1773004241564,-177.0,0.00018883,2]
[408000438,1773004241574,-166.66,0.00018929,2]
[408000439,1773004241583,-1131.9,0.00018957,2]
[408000440,1773004241592,-292.60588981,0.00018981,2]
[408000441,1773004241604,-23318.49103366,0.00019,2]
[408000442,1773004241613,-350.0,0.00019,2]
[408000443,1773004241622,-951.53037599,0.00019001,2]
[408000444,1773004241631,-4929.29232867,0.00019004,2]
[408000445,1773004241641,-177.0,0.00019029,2]
[408000446,1773004241650,-9279.44470698,0.00019029,2]
[408000447,1773004241660,-177.0,0.00019056,2]
[408000448,1773004241669,-1131.9,0.00019062,2]
[408000449,1773004241680,-177.0,0.00019077,2]
[408000450,1773004241690,-179.91,0.00019087,2]
[408000451,1773004241699,-11200.0,0.000191,6]
[408000452,1773004241708,-177.0,0.00019101,2]
[408000453,1773004241717,-539.84140575,0.00019117,2]
[408000454,1773004241727,-1109.0,0.00019145,2]
[408000455,1773004241736,-1150.14358182,0.00019145,2]
[408000456,1773004241745,-1131.9,0.00019166,2]
[408000457,1773004241754,-700.0,0.00019178,7]
[408000458,1773004241764,-2300.0,0.00019178,7]
[408000459,1773004241775,-1800.0,0.00019178,7]
[408000460,1773004241784,-1000.0,0.00019178,2]
[408000461,1773004241793,-500.0,0.00019199,2]
[408000462,1773004241803,-500.0,0.00019199,2]
[408000463,1773004241812,-386.52843539,0.00019199,2]
[408000464,1773004241821,-2000.0,0.000192,2]
[408000465,1773004241830,-2000.0,0.000192,2]
[408000466,1773004241839,-15000.0,0.000192,7]
[408000467,1773004241848,-9279.44470698,0.00019204,2]
[408000468,1773004241857,-4929.29232867,0.00019228,2]
[408000469,1773004241877,-1131.9,0.0001927,2]
[408000470,1773004241887,-500.0,0.00019275,2]
[408000471,1773004241897,-5582.86283425,0.00019299,2]
[408000472,1773004241907,-151.0,0.000193,2]
[408000473,1773004241917,-869.17822,0.000193,2]
[408000474,1773004241926,-869.17822,0.000193,2]
[408000475,1773004241936,-869.17822,0.000193,2]
[408000476,1773004241945,-869.17822,0.000193,2]
[408000477,1773004241955,-580.672105,0.000193,2]
[408000478,1773004241964,-580.672105,0.000193,2]
[408000479,1773004241973,-580.672105,0.000193,2]
[408000480,1773004241983,-580.672105,0.000193,2]
[408000481,1773004241992,-151.0,0.000193,2]
[408000482,1773004242002,-186.188369,0.000193,2]
[408000483,1773004242012,-186.188369,0.000193,2]
[408000484,1773004242021,-186.188369,0.000193,2]
[408000485,1773004242031,-186.188369,0.000193,2]
[408000486,1773004242040,-151.0,0.000193,2]
[408000487,1773004242050,-151.0,0.000193,2]
[408000488,1773004242059,-151.0,0.000193,2]
[408000489,1773004242069,-151.0,0.000193,2]
[408000490,1773004242079,-297.459547,0.000193,2]
[408000491,1773004242088,-18700.0,0.000193,7]
[408000492,1773004242098,-151.0,0.000193,2]
[408000493,1773004242107,-151.0,0.000193,2]
[408000494,1773004242117,-151.0,0.000193,2]
[408000495,1773004242126,-177.0,0.00019331,2]
[408000496,1773004242136,-847.0,0.0001936,2]
[408000497,1773004242145,-177.0,0.00019372,2]
[408000498,1773004242155,-1131.9,0.00019374,2]
[408000499,1773004242164,-539.84140575,0.00019378,2]
[408000500,1773004242174,-9279.44470698,0.00019378,2]
[408000501,1773004242183,-3700.0,0.000194,7]
[408000502,1773004242193,-2665.33902125,0.000194,2]
[408000503,1773004242203,-500.0,0.00019402,2]
[408000504,1773004242212,-350.0,0.0001941,2]
[408000505,1773004242221,-179.91,0.00019426,2]
[408000506,1773004242231,-951.53037599,0.00019451,2]
[408000507,1773004242240,-4929.29232867,0.00019452,2]
[408000508,1773004242250,-1000.0,0.00019452,2]
[408000509,1773004242260,-550.0,0.00019463,2]
[408000510,1773004242269,-1131.9,0.00019479,2]
[408000511,1773004242278,-150.0,0.00019492,2]
[408000512,1773004242288,-500.0,0.00019492,2]
[408000513,1773004242297,-500.0,0.00019492,2]
[408000514,1773004242307,-500.0,0.00019492,2]
[408000515,1773004242317,-500.0,0.00019492,2]
[408000516,1773004242327,-500.0,0.00019492,2]
[408000517,1773004242337,-500.0,0.00019492,2]
[408000518,1773004242347,-500.0,0.00019492,2]
[408000519,1773004242357,-500.0,0.00019492,2]
[408000520,1773004242366,-500.0,0.00019492,2]
[408000521,1773004242375,-500.0,0.00019492,2]
[408000522,1773004242385,-500.0,0.00019492,2]
[408000523,1773004242395,-500.0,0.00019492,2]
[408000524,1773004242405,-500.0,0.00019492,2]
[408000526,1773004242415,-500.0,0.00019492,2]
[408000528,1773004242425,-500.0,0.00019492,2]
[408000530,1773004242435,-500.0,0.00019492,2]
[408000531,1773004242444,-500.0,0.00019492,2]
[408000532,1773004242453,-150.0,0.00019492,2]
[408000533,1773004242463,-150.0,0.00019492,2]
[408000534,1773004242472,-500.0,0.00019492,2]
[408000535,1773004242481,-500.0,0.00019492,2]
[408000536,1773004242490,-150.0,0.00019492,2]
[408000537,1773004242500,-500.0,0.00019492,2]
[408000538,1773004242509,-500.0,0.00019492,2]
[408000539,1773004242518,-150.0,0.00019492,2]
[408000540,1773004242528,-500.0,0.00019492,2]
[408000542,1773004242537,-150.0,0.00019492,2]
[408000544,1773004242546,-500.0,0.00019492,2]
[408000546,1773004242556,-500.0,0.00019492,2]
[408000548,1773004242565,-500.0,0.00019492,2]
[408000550,1773004242574,-500.0,0.00019492,2]
[408000552,1773004242583,-500.0,0.00019492,2]
[408000554,1773004242592,-153.73169913,0.00019492,2]
[408000556,1773004242602,-500.0,0.00019492,2]
[408000558,1773004242614,-155.44184075,0.00019492,2]
[408000559,1773004242624,-500.0,0.00019492,2]
[408000560,1773004242633,-150.0,0.00019492,2]
[408000561,1773004242643,-500.0,0.00019492,2]
[408000562,1773004242653,-500.0,0.00019492,2]
[408000563,1773004242662,-500.0,0.00019492,2]
[408000564,1773004242671,-150.0,0.00019492,2]
[408000565,1773004242686,-150.0,0.00019492,2]
[408000566,1773004242695,-214.72781122,0.00019492,2]
[408000567,1773004242705,-500.0,0.00019492,2]
[408000568,1773004242714,-166.66,0.00019498,2]
[408000569,1773004242727,-3700.0,0.000195,7]
[408000570,1773004242737,-2000.0,0.000195,2]
[408000571,1773004242747,-348.45,0.00019522,2]
[408000572,1773004242757,-150.0,0.00019547,2]
[408000573,1773004242766,-502.73758704,0.00019547,2]
[408000574,1773004242776,-500.0,0.00019547,2]
[408000575,1773004242793,-500.0,0.00019547,2]
[408000576,1773004242810,-500.0,0.00019547,2]
[408000578,1773004242820,-500.0,0.00019547,2]
[408000579,1773004242833,-500.0,0.00019547,2]
[408000581,1773004242844,-500.0,0.00019547,2]
[408000583,1773004242855,-500.0,0.00019547,2]
[408000585,1773004242866,-500.0,0.00019547,2]
[408000587,1773004242876,-500.0,0.00019547,2]
[408000589,1773004242886,-500.0,0.00019547,2]
[408000591,1773004242897,-500.0,0.00019547,2]
[408000593,1773004242907,-500.0,0.00019547,2]
[408000595,1773004242917,-500.0,0.00019547,2]
[408000597,1773004242927,-609.45374442,0.00019547,2]
[408000599,1773004242939,-500.41015646,0.00019547,2]
[408000600,1773004242949,-500.0,0.00019547,2]
[408000602,1773004242959,-150.0,0.00019547,2]
[408000604,1773004242969,-500.0,0.00019547,2]
[408000605,1773004242979,-500.0,0.00019547,2]
[408000607,1773004242990,-500.0,0.00019547,2]
[408000608,1773004243000,-500.0,0.00019547,2]
[408000610,1773004243010,-500.0,0.00019547,2]
[408000613,1773004243021,-150.0,0.00019547,2]
[408000614,1773004243032,-526.75692552,0.00019547,2]
[408000616,1773004243045,-500.0,0.00019547,2]
[408000617,1773004243063,-500.0,0.00019547,2]
[408000618,1773004243073,-500.0,0.00019547,2]
[408000619,1773004243084,-500.0,0.00019547,2]
[408000620,1773004243095,-500.0,0.00019547,2]
[408000621,1773004243106,-500.0,0.00019547,2]
[408000622,1773004243115,-150.0,0.00019547,2]
[408000623,1773004243125,-500.0,0.00019547,2]
[408000624,1773004243134,-500.35736989,0.00019547,2]
[408000625,1773004243145,-500.0,0.00019547,2]
[408000626,1773004243155,-268.23,0.00019547,2]
[408000627,1773004243164,-206.78238077,0.00019547,2]
[408000628,1773004243174,-500.0,0.00019547,2]
[408000629,1773004243184,-151.0,0.00019547,2]
[408000630,1773004243193,-151.0,0.00019547,2]
[408000631,1773004243202,-151.0,0.00019547,2]
[408000632,1773004243212,-343.20274,0.00019547,2]
[408000633,1773004243222,-343.20274,0.00019547,2]
[408000634,1773004243231,-343.20274,0.00019547,2]
[408000635,1773004243241,-9279.44470698,0.00019552,2]
[408000636,1773004243250,-151.0,0.00019552,2]
[408000637,1773004243259,-151.0,0.00019552,2]
[408000638,1773004243269,-459.421062,0.00019552,2]
[408000639,1773004243278,-459.421062,0.00019552,2]
[408000640,1773004243288,-459.421062,0.00019552,2]
[408000641,1773004243300,-459.421062,0.00019552,2]
[408000642,1773004243309,-177.0,0.00019553,2]
[408000643,1773004243319,-503.0,0.00019571,4]
[408000644,1773004243328,-1131.9,0.00019583,2]
[408000645,1773004243337,-924.96860637,0.000196,2]
[408000646,1773004243347,-3700.0,0.000196,7]
[408000647,1773004243356,-2000.0,0.000196,2]
[408000648,1773004243366,-2000.0,0.000196,2]
[408000649,1773004243376,-201.92925428,0.00019602,2]
[408000650,1773004243386,-500.0,0.00019602,2]
[408000651,1773004243395,-500.0,0.00019602,2]
[408000652,1773004243404,-500.0,0.00019602,2]
[408000653,1773004243414,-462.18393224,0.00019602,2]
[408000654,1773004243423,-501.16147339,0.00019602,2]
[408000655,1773004243434,-500.0,0.00019602,2]
[408000656,1773004243443,-200.0,0.00019602,2]
[408000657,1773004243452,-500.0,0.00019602,2]
[408000658,1773004243461,-508.62446348,0.00019602,2]
[408000659,1773004243471,-500.0,0.00019602,2]
[408000660,1773004243480,-500.0,0.00019602,2]
[408000661,1773004243491,-514.0,0.00019602,2]
[408000662,1773004243500,-300.0,0.00019602,2]
[408000663,1773004243509,-500.0,0.00019602,2]
[408000664,1773004243519,-177.89931814,0.00019602,2]
[408000665,1773004243528,-500.0,0.00019602,2]
[408000666,1773004243537,-500.0,0.00019602,2]
[408000667,1773004243550,-500.0,0.00019602,2]
[408000668,1773004243559,-500.0,0.00019602,2]
[408000669,1773004243568,-500.0,0.00019602,2]
[408000670,1773004243577,-154.34344167,0.00019602,2]
[408000671,1773004243587,-500.0,0.00019602,2]
[408000672,1773004243596,-500.0,0.00019602,2]
[408000673,1773004243611,-500.0,0.00019602,2]
[408000674,1773004243620,-500.0,0.00019602,2]
[408000675,1773004243630,-500.0,0.00019602,2]
[408000676,1773004243639,-500.0,0.00019602,2]
[408000677,1773004243651,-150.0,0.00019602,2]
[408000678,1773004243661,-444.11265572,0.00019602,2]
[408000679,1773004243671,-500.0,0.00019602,2]
[408000680,1773004243683,-500.0,0.00019602,2]
[408000681,1773004243693,-550.0,0.00019618,2]
[408000682,1773004243702,-177.0,0.00019622,2]
[408000683,1773004243712,-539.84140575,0.00019639,2]
[408000684,1773004243721,-500.0,0.00019656,2]